fUSD/lending_fUSD_20241003
["ID","MTS","AMOUNT","RATE_DAILY","PERIOD"]
[339777069,1727982642679,-500.0,0.00032876,120]
[339777070,1727982642688,-500.0,0.00032876,120]
[339777071,1727982642698,-500.0,0.00032876,120]
[339777072,1727982642707,-500.0,0.00032876,120]
[339777073,1727982642716,-785.7,0.00032876,120]
[339777074,1727982642726,-500.0,0.00032876,120]
[339777075,1727982642735,-922.29,0.00032876,120]
[339777077,1727982642745,-505.77459336,0.00032876,120]
[339777078,1727982642755,-500.0,0.00032876,120]
[339777079,1727982642764,-500.0,0.00032876,120]
[339777080,1727982642774,-503.56119215,0.00032876,120]
[339777081,1727982642783,-500.0,0.00032876,120]
[339777082,1727982642792,-500.0,0.00032876,120]
[339777083,1727982642802,-500.0,0.00032876,120]
[339777085,1727982642812,-500.0,0.00032876,120]
[339777087,1727982642822,-1005.98,0.00032876,120]
[339777089,1727982642832,-486.10596812,0.00032876,120]
[339777090,1727982642841,-1265.11,0.00032876,120]
[339777091,1727982642851,-1058.62,0.00032876,120]
[339777092,1727982642860,-500.0,0.00032876,120]
[339777093,1727982642870,-1000.0,0.00032876,120]
[339777094,1727982642879,-500.0,0.00032876,120]
[339777096,1727982642889,-1285.4,0.00032876,120]
[339777098,1727982642898,-500.0,0.00032876,120]
[339777099,1727982642913,-500.0,0.00032876,120]
[339777100,1727982642927,-500.35298928,0.00032876,120]
[339777101,1727982642937,-500.0,0.00032876,120]
[339777102,1727982642947,-910.74,0.00032876,120]
[339777103,1727982642957,-500.0,0.00032876,120]
[339777104,1727982642967,-500.0,0.00032876,2]
[339777105,1727982642977,-500.0,0.00032876,120]
[339777106,1727982642987,-1109.6,0.00032876,120]
[339777107,1727982642997,-509.91542379,0.00032876,120]
[339777108,1727982643007,-500.0,0.00032876,120]
[339777109,1727982643018,-500.0,0.00032876,120]
[339777110,1727982643028,-523.85,0.00032876,120]
[339777111,1727982643037,-500.0,0.00032876,120]
[339777112,1727982643047,-500.0,0.00032876,120]
[339777113,1727982643058,-2405.98,0.00032876,120]
[339777114,1727982643068,-500.0,0.00032876,120]
[339777115,1727982643078,-500.0,0.00032876,120]
[339777116,1727982643088,-532.25,0.00032876,120]
[339777117,1727982643098,-500.0,0.00032876,120]
[339777118,1727982643108,-500.0,0.00032876,120]
[339777119,1727982643117,-1257.82,0.00032876,120]
[339777120,1727982643127,-509.33,0.00032876,120]
[339777121,1727982643137,-500.0,0.00032876,120]
[339777122,1727982643147,-701.66,0.00032876,120]
[339777123,1727982643160,-500.0,0.00032876,120]
[339777124,1727982643170,-1224.27,0.00032876,120]
[339777125,1727982643179,-1189.92,0.00032876,120]
[339777126,1727982643188,-500.0,0.00032876,120]
[339777127,1727982643199,-500.0,0.00032876,120]
[339777128,1727982643209,-733.61,0.00032876,120]
[339777129,1727982643218,-500.0,0.00032876,120]
[339777130,1727982643228,-500.0,0.00032876,120]
[339777131,1727982643237,-503.51593088,0.00032876,120]
[339777132,1727982643247,-576.54,0.00032876,120]
[339777133,1727982643257,-862.23,0.00032876,120]
[339777134,1727982643266,-721.29,0.00032876,120]
[339777135,1727982643276,-1136.04,0.00032876,120]
[339777136,1727982643285,-668.9,0.00032876,120]
[339777138,1727982643295,-509.84554541,0.00032876,120]
[339777139,1727982643305,-572.02,0.00032876,120]
[339777140,1727982643314,-500.0,0.00032876,120]
[339777141,1727982643323,-500.0,0.00032876,120]
[339777142,1727982643333,-659.41,0.00032876,120]
[339777143,1727982643348,-740.9,0.00032876,120]
[339777144,1727982643358,-650.73,0.00032876,120]
[339777145,1727982643367,-500.0,0.00032876,120]
[339777146,1727982643377,-505.34006853,0.00032876,120]
[339777147,1727982643387,-505.85866326,0.00032876,120]
[339777148,1727982643396,-870.17,0.00032876,120]
[339777149,1727982643408,-500.0,0.00032876,120]
[339777150,1727982643417,-500.0,0.00032876,120]
[339777151,1727982643429,-530.24,0.00032876,120]
[339777152,1727982643439,-639.02,0.00032876,120]
[339777153,1727982643449,-500.0,0.00032876,120]
[339777154,1727982643458,-501.18276064,0.00032876,120]
[339777156,1727982643468,-500.0,0.00032876,120]
[339777158,1727982643478,-836.27,0.00032876,120]
[339777160,1727982643487,-351.87976189,0.00032876,120]
[339777161,1727982643497,-500.0,0.00032876,120]
[339777162,1727982643506,-500.0,0.00032876,120]
[339777163,1727982643516,-500.0,0.00032876,120]
[339777164,1727982643526,-1752.48,0.00032876,120]
[339777165,1727982643535,-1674.45,0.00032876,120]
[339777166,1727982643545,-1168.54,0.00032876,120]
[339777167,1727982643554,-500.0,0.00032876,120]
[339777168,1727982643564,-500.0,0.00032876,120]
[339777169,1727982643574,-2430.04,0.00032876,120]
[339777170,1727982643584,-20000.0,0.00032876,2]
[339777171,1727982643593,-500.0,0.00032876,120]
[339777172,1727982643603,-500.0,0.00032876,120]
[339777173,1727982643612,-500.0,0.00032876,120]
[339777174,1727982643622,-500.0,0.00032876,120]
[339777175,1727982643631,-500.0,0.00032876,90]
[339777176,1727982643641,-2235.25,0.00032876,120]
[339777177,1727982643650,-622.89027403,0.00032876,120]
[339777178,1727982643663,-182.46806182,0.00032876,120]
[339777179,1727982643673,-749.88,0.00032876,24]
[339777180,1727982643682,-500.0,0.00032876,120]
[339777181,1727982643692,-2252.62,0.00032876,120]
[339777182,1727982643701,-2045.49,0.00032876,120]
[339777183,1727982643711,-500.0,0.00032876,120]
[339777184,1727982643720,-2045.49,0.00032876,120]
[339777185,1727982643730,-2045.49,0.00032876,120]
[339777186,1727982643740,-2045.49,0.00032876,120]
[339777187,1727982643749,-2045.49,0.00032876,120]
[339777188,1727982643758,-2045.49,0.00032876,120]
[339777189,1727982643767,-2045.49,0.00032876,120]
[339777190,1727982643776,-500.0,0.00032876,120]
[339777191,1727982643785,-2045.49,0.00032876,120]
[339777192,1727982643795,-2045.49,0.00032876,120]
[339777193,1727982643804,-1158.96,0.00032876,120]
[339777194,1727982643814,-2045.49,0.00032876,120]
[339777195,1727982643900,-2045.49,0.00032876,120]
[339777196,1727982643911,-2045.49,0.00032876,120]
[339777197,1727982643920,-2045.49,0.00032876,120]
[339777198,1727982643929,-2045.49,0.00032876,120]
[339777199,1727982643939,-2045.49,0.00032876,120]
[339777200,1727982643948,-2045.49,0.00032876,120]
[339777201,1727982643958,-2045.49,0.00032876,120]
[339777202,1727982643967,-2045.49,0.00032876,120]
[339777203,1727982643976,-2045.49,0.00032876,120]
[339777204,1727982643986,-2045.49,0.00032876,120]
[339777205,1727982643996,-2045.49,0.00032876,120]
[339777206,1727982644006,-2045.49,0.00032876,120]
[339777207,1727982644015,-500.0,0.00032876,120]
[339777208,1727982644024,-2045.49,0.00032876,120]
[339777209,1727982644033,-2045.59125987,0.00032876,120]
[339777210,1727982644042,-160.57239946,0.00032876,120]
[339777211,1727982644051,-500.0,0.00032876,120]
[339777212,1727982644061,-759.01,0.00032876,120]
[339777213,1727982644071,-504.94,0.00032876,120]
[339777214,1727982644081,-500.0,0.00032876,120]
[339777215,1727982644090,-501.2656307,0.00032876,120]
[339777216,1727982644100,-500.0,0.00032876,120]
[339777217,1727982644109,-1642.55,0.00032876,120]
[339777218,1727982644118,-1518.09,0.00032876,120]
[339777219,1727982644128,-1126.69,0.00032876,120]
[339777220,1727982644138,-500.0,0.00032876,120]
[339777221,1727982644147,-500.0,0.00032876,120]
[339777222,1727982644159,-500.0,0.00032876,120]
[339777223,1727982644169,-2332.95,0.00032876,120]
[339777224,1727982644178,-500.0,0.00032876,120]
[339777225,1727982644188,-881.14,0.00032876,120]
[339777226,1727982644199,-500.0,0.00032876,120]
[339777227,1727982644208,-1062.68,0.00032876,120]
[339777228,1727982644218,-1089.61,0.00032876,120]
[339777229,1727982644227,-500.0,0.00032876,120]
[339777230,1727982644237,-500.0,0.00032876,120]
[339777231,1727982644246,-1981.95,0.00032876,120]
[339777232,1727982644255,-500.0,0.00032876,120]
[339777233,1727982644265,-500.0,0.00032876,120]
[339777234,1727982644274,-500.0,0.00032876,120]
[339777235,1727982644284,-500.0,0.00032876,120]
[339777236,1727982644293,-5241.23,0.00032876,120]
[339777237,1727982644303,-500.0,0.00032876,120]
[339777238,1727982644312,-2018.74,0.00032876,120]
[339777239,1727982644322,-500.0,0.00032876,120]
[339777240,1727982644331,-500.0,0.00032876,120]
[339777241,1727982644341,-500.0,0.00032876,120]
[339777242,1727982644354,-500.0,0.00032876,120]
[339777243,1727982644363,-500.0,0.00032876,120]
[339777244,1727982644372,-500.0,0.00032876,120]
[339777245,1727982644381,-535.49,0.00032876,120]
[339777246,1727982644391,-500.0,0.00032876,120]
[339777247,1727982644400,-500.0,0.00032876,120]
[339777248,1727982644411,-500.0,0.00032876,120]
[339777249,1727982644420,-500.0,0.00032876,120]
[339777250,1727982644432,-500.0,0.00032876,120]
[339777251,1727982644441,-500.0,0.00032876,120]
[339777252,1727982644451,-500.0,0.00032876,120]
[339777253,1727982644460,-500.0,0.00032876,120]
[339777254,1727982644469,-500.0,0.00032876,120]
[339777255,1727982644478,-500.0,0.00032876,120]
[339777256,1727982644490,-500.0,0.00032876,120]
[339777257,1727982644500,-500.0,0.00032876,120]
[339777258,1727982644509,-500.0,0.00032876,120]
[339777259,1727982644518,-500.0,0.00032876,120]
[339777260,1727982644530,-202.78025246,0.00032876,120]
[339777261,1727982644540,-500.0,0.00032876,120]
[339777262,1727982644549,-500.0,0.00032876,120]
[339777263,1727982644558,-1250.03,0.00032876,120]
[339777264,1727982644568,-2902.72,0.00032876,120]
[339777265,1727982644577,-639.38,0.00032876,120]
[339777266,1727982644587,-639.38,0.00032876,120]
[339777267,1727982644597,-639.38,0.00032876,120]
[339777268,1727982644606,-639.38,0.00032876,120]
[339777269,1727982644616,-639.38,0.00032876,120]
[339777270,1727982644625,-500.0,0.00032876,120]
[339777271,1727982644634,-2587.44,0.00032876,120]
[339777272,1727982644643,-639.38,0.00032876,120]
[339777273,1727982644652,-639.38,0.00032876,120]
[339777274,1727982644663,-639.38,0.00032876,120]
[339777275,1727982644673,-639.38,0.00032876,120]
[339777276,1727982644682,-639.38,0.00032876,120]
[339777277,1727982644691,-639.38,0.00032876,120]
[339777278,1727982644700,-500.0,0.00032876,120]
[339777279,1727982644709,-639.38,0.00032876,120]
[339777280,1727982644718,-500.77798914,0.00032876,2]
[339777281,1727982644727,-639.38,0.00032876,120]
[339777282,1727982644736,-639.38,0.00032876,120]
[339777283,1727982644746,-639.38,0.00032876,120]
[339777284,1727982644755,-500.0,0.00032876,120]
[339777285,1727982644765,-2510.63,0.00032876,120]
[339777286,1727982644775,-723.92,0.00032876,120]
[339777287,1727982644784,-711.37,0.00032876,120]
[339777288,1727982644794,-500.0,0.00032876,120]
[339777289,1727982644803,-397.09441616,0.00032876,120]
[339777290,1727982644813,-1791.96,0.00032876,120]
[339777291,1727982644822,-3166.02,0.00032876,120]
[339777292,1727982644831,-1267.03,0.00032876,120]
[339777293,1727982644840,-500.0,0.00032876,120]
[339777294,1727982644849,-500.0,0.00032876,120]
[339777295,1727982644858,-628.84478117,0.00032876,120]
[339777296,1727982644867,-379.8735959,0.00032876,120]
[339777297,1727982644876,-584.50214363,0.00032876,120]
[339777298,1727982644886,-619.48,0.00032876,120]
[339777299,1727982644895,-621.03,0.00032876,120]
[339777300,1727982644904,-1769.87,0.00032876,120]
[339777301,1727982644914,-500.0,0.00032876,120]
[339777302,1727982644923,-856.57,0.00032876,120]
[339777303,1727982644932,-500.0,0.00032876,120]
[339777304,1727982644941,-501.71781736,0.00032876,120]
[339777305,1727982644951,-508.63260908,0.00032876,120]
[339777306,1727982644960,-500.0,0.00032876,120]
[339777307,1727982644970,-500.0,0.00032876,120]
[339777308,1727982644980,-500.0,0.00032876,120]
[339777309,1727982644990,-3322.9,0.00032876,120]
[339777310,1727982644999,-596.96986946,0.00032876,120]
[339777311,1727982645009,-500.0,0.00032876,120]
[339777312,1727982645018,-500.0,0.00032876,120]
[339777313,1727982645028,-972.85,0.00032876,120]
[339777314,1727982645037,-500.0,0.00032876,120]
[339777315,1727982645047,-1246.86,0.00032876,120]
[339777316,1727982645056,-500.0,0.00032876,120]
[339777317,1727982645066,-500.0,0.00032876,120]
[339777318,1727982645075,-503.78944225,0.00032876,120]
[339777319,1727982645085,-730.31,0.00032876,120]
[339777320,1727982645095,-830.42,0.00032876,120]
[339777321,1727982645104,-500.0,0.00032876,120]
[339777322,1727982645114,-588.05,0.00032876,120]
[339777323,1727982645124,-1243.24,0.00032876,120]
[339777324,1727982645133,-500.0,0.00032876,120]
[339777325,1727982645143,-500.0,0.00032876,120]
[339777326,1727982645152,-1230.46,0.00032876,120]
[339777327,1727982645164,-555.63,0.00032876,120]
[339777328,1727982645173,-501.21039253,0.00032876,120]
[339777329,1727982645182,-1362.61,0.00032876,120]
[339777330,1727982645191,-500.0,0.00032876,120]
[339777331,1727982645201,-500.30691987,0.00032876,120]
[339777332,1727982645210,-1319.53,0.00032876,120]
[339777333,1727982645219,-981.99,0.00032876,120]
[339777334,1727982645229,-825.83,0.00032876,120]
[339777335,1727982645239,-1051.47,0.00032876,120]
[339777336,1727982645248,-500.0,0.00032876,120]
[339777337,1727982645258,-1494.54,0.00032876,120]
[339777338,1727982645268,-1306.0,0.00032876,120]
[339777339,1727982645277,-1031.9,0.00032876,120]
[339777340,1727982645287,-572.36,0.00032876,120]
[339777341,1727982645297,-500.0,0.00032876,120]
[339777342,1727982645306,-532.99,0.00032876,120]
[339777343,1727982645315,-1275.22,0.00032876,120]
[339777344,1727982645324,-500.0,0.00032876,120]
[339777345,1727982645334,-3179.4,0.00032876,120]
[339777346,1727982645344,-1463.89,0.00032876,120]
[339777347,1727982645358,-473.9848329,0.00032876,120]
[339777348,1727982645367,-2471.4,0.00032876,120]
[339777349,1727982645377,-500.0,0.00032876,120]
[339777350,1727982645386,-2444.12,0.00032876,2]
[339777351,1727982645396,-1508.0,0.00032876,120]
[339777352,1727982645406,-1142.79,0.00032876,120]
[339777353,1727982645417,-641.35,0.00032876,120]
[339777354,1727982645429,-500.0,0.00032876,120]
[339777355,1727982645438,-1847.83,0.00032876,120]
[339777356,1727982645447,-500.0,0.00032876,120]
[339777357,1727982645457,-500.0,0.00032876,120]
[339777358,1727982645466,-500.0,0.00032876,120]
[339777359,1727982645475,-500.0,0.00032876,90]
[339777360,1727982645484,-3715.52,0.00032876,120]
[339777361,1727982645494,-532.65,0.00032876,120]
[339777362,1727982645503,-597.98,0.00032876,120]
[339777363,1727982645512,-500.0,0.00032876,120]
[339777364,1727982645521,-1463.16,0.00032876,120]
[339777365,1727982645531,-500.0,0.00032876,120]
[339777366,1727982645539,-842.06,0.00032876,120]
[339777367,1727982645549,-501.15825556,0.00032876,120]
[339777368,1727982645558,-1487.59,0.00032876,120]
[339777370,1727982645567,-1269.98,0.00032876,120]
[339777372,1727982645576,-959.6,0.00032876,120]
[339777373,1727982645586,-500.0,0.00032876,120]
[339777374,1727982645595,-500.0,0.00032876,120]
[339777375,1727982645604,-501.13955027,0.00032876,120]
[339777376,1727982645613,-689.35,0.00032876,120]
[339777378,1727982645623,-3520.64,0.00032876,120]
[339777379,1727982645632,-500.0,0.00032876,120]
[339777380,1727982645641,-742.8,0.00032876,120]
[339777381,1727982645651,-500.0,0.00032876,120]
[339777382,1727982645666,-641.2,0.00032876,120]
[339777383,1727982645675,-500.0,0.00032876,120]
[339777384,1727982645684,-1339.77,0.00032876,120]
[339777385,1727982645694,-974.01,0.00032876,120]
[339777386,1727982645703,-1537.62,0.00032876,120]
[339777387,1727982645712,-1758.53,0.00032876,120]
[339777388,1727982645721,-500.0,0.00032876,5]
[339777389,1727982645730,-500.0,0.00032876,120]
[339777390,1727982645739,-313.3416855,0.00032876,120]
[339777391,1727982645748,-2075.75,0.00032876,120]
[339777392,1727982645757,-500.0,0.00032876,120]
[339777393,1727982645766,-3502.45,0.00032876,120]
[339777394,1727982645775,-1422.75,0.00032876,120]
[339777395,1727982645784,-500.0,0.00032876,120]
[339777396,1727982645793,-582.12178217,0.00032876,120]
[339777397,1727982645803,-500.0,0.00032876,120]
[339777398,1727982645813,-500.0,0.00032876,120]
[339777399,1727982645822,-500.0,0.00032876,120]
[339777400,1727982645831,-263.56704036,0.00032876,120]
[339777401,1727982645840,-659.84,0.00032876,120]
[339777402,1727982645849,-500.0,0.00032876,120]
[339777403,1727982645858,-502.5,0.00032876,120]
[339777404,1727982645868,-1906.97,0.00032876,120]
[339777405,1727982645877,-500.0,0.00032876,120]
[339777406,1727982645886,-500.0,0.00032876,120]
[339777407,1727982645895,-2484.29,0.00032876,120]
[339777408,1727982645904,-1273.56,0.00032876,120]
[339777409,1727982645916,-500.0,0.00032876,120]
[339777410,1727982645925,-500.0,0.00032876,120]
[339777411,1727982645935,-500.0,0.00032876,120]
[339777412,1727982645944,-2004.82,0.00032876,120]
[339777413,1727982645953,-500.0,0.00032876,120]
[339777414,1727982645962,-500.0,0.00032876,120]
[339777415,1727982645972,-1043.14,0.00032876,120]
[339777416,1727982645981,-500.0,0.00032876,120]
[339777417,1727982645991,-500.0,0.00032876,120]
[339777418,1727982646000,-500.0,0.00032876,120]
[339777419,1727982646010,-500.0,0.00032876,120]
[339777420,1727982646019,-1445.97,0.00032876,120]
[339777421,1727982646028,-501.48719566,0.00032876,120]
[339777422,1727982646037,-877.0,0.00032876,120]
[339777423,1727982646046,-500.0,0.00032876,120]
[339777424,1727982646055,-500.0,0.00032876,120]
[339777425,1727982646064,-501.2138076,0.00032876,120]
[339777426,1727982646073,-500.0,0.00032876,120]
[339777427,1727982646083,-500.32536673,0.00032876,120]
[339777428,1727982646092,-500.0,0.00032876,120]
[339777429,1727982646101,-500.0,0.00032876,120]
[339777430,1727982646111,-500.0,0.00032876,120]
[339777431,1727982646120,-389.46191538,0.00032876,120]
[339777432,1727982646129,-500.0,0.00032876,120]
[339777433,1727982646138,-500.0,0.00032876,120]
[339777434,1727982646147,-1443.35,0.00032876,120]
[339777435,1727982646156,-500.0,0.00032876,120]
[339777436,1727982646177,-500.0,0.00032876,120]
[339777437,1727982646186,-405.16754753,0.00032876,120]
[339777438,1727982646196,-500.0,0.00032876,120]
[339777439,1727982646205,-500.0,0.00032876,120]
[339777440,1727982646214,-3476.01,0.00032876,120]
[339777441,1727982646223,-500.0,0.00032876,120]
[339777442,1727982646232,-500.0,0.00032876,120]
[339777443,1727982646241,-500.0,0.00032876,120]
[339777444,1727982646251,-2600.0,0.00032876,120]
[339777445,1727982646260,-500.0,0.00032876,120]
[339777446,1727982646269,-500.0,0.00032876,120]
[339777447,1727982646278,-500.0,0.00032876,120]
[339777448,1727982646287,-562.74,0.00032876,120]
[339777449,1727982646296,-500.0,0.00032876,120]
[339777450,1727982646305,-500.0,0.00032876,120]
[339777451,1727982646315,-565.4,0.00032876,120]
[339777452,1727982646324,-500.0,0.00032876,120]
[339777453,1727982646333,-500.0,0.00032876,120]
[339777454,1727982646342,-544.59,0.00032876,120]
[339777455,1727982646353,-500.0,0.00032876,120]
[339777456,1727982646363,-500.0,0.00032876,120]
[339777457,1727982646372,-300.0,0.00032876,120]
[339777458,1727982646380,-1424.66,0.00032876,120]
[339777459,1727982646391,-501.21457639,0.00032876,120]
[339777460,1727982646400,-500.0,0.00032876,120]
[339777461,1727982646413,-500.0,0.00032876,120]
[339777462,1727982646422,-500.0,0.00032876,120]
[339777463,1727982646433,-500.0,0.00032876,120]
[339777464,1727982646442,-500.0,0.00032876,120]
[339777465,1727982646450,-500.0,0.00032876,120]
[339777466,1727982646459,-597.33,0.00032876,120]
[339777467,1727982646468,-539.7242072,0.00032876,120]
[339777468,1727982646478,-722.36,0.00032876,120]
[339777469,1727982646487,-1350.58,0.00032876,120]
[339777470,1727982646495,-1000.0,0.00032876,120]
[339777471,1727982646505,-612.91,0.00032876,120]
[339777472,1727982646514,-1038.81,0.00032876,120]
[339777473,1727982646523,-500.63076599,0.00032876,120]
[339777474,1727982646532,-670.75,0.00032876,120]
[339777475,1727982646541,-500.0,0.00032876,120]
[339777476,1727982646550,-500.0,0.00032876,120]
[339777477,1727982646559,-500.0,0.00032876,120]
[339777478,1727982646568,-501.23259581,0.00032876,120]
[339777479,1727982646577,-500.0,0.00032876,120]
[339777480,1727982646586,-500.0,0.00032876,120]
[339777481,1727982646595,-500.0,0.00032876,120]
[339777482,1727982646604,-1301.07,0.00032876,120]
[339777483,1727982646613,-500.0,0.00032876,120]
[339777484,1727982646622,-500.0,0.00032876,120]
[339777485,1727982646631,-2082.62,0.00032876,120]
[339777486,1727982646640,-500.0,0.00032876,120]
[339777487,1727982646649,-1754.76,0.00032876,120]
[339777488,1727982646661,-921.68,0.00032876,120]
[339777489,1727982646670,-500.0,0.00032876,120]
[339777490,1727982646679,-500.0,0.00032876,120]
[339777491,1727982646687,-500.0,0.00032876,120]
[339777492,1727982646696,-500.0,0.00032876,120]
[339777493,1727982646705,-500.0,0.00032876,120]
[339777494,1727982646714,-523.02018313,0.00032876,120]
[339777495,1727982646724,-581.43,0.00032876,120]
[339777496,1727982646732,-649.6451511,0.00032876,2]
[339777497,1727982646742,-500.0,0.00032876,120]
[339777498,1727982646751,-304.61594904,0.00032876,120]
[339777499,1727982646760,-809.83,0.00032876,120]
[339777500,1727982646769,-500.0,0.00032876,120]
[339777501,1727982646778,-501.93891014,0.00032876,120]
[339777502,1727982646787,-500.1658142,0.00032876,120]
[339777503,1727982646796,-500.0,0.00032876,120]
[339777504,1727982646805,-1168.66,0.00032876,120]
[339777505,1727982646814,-500.0,0.00032876,120]
[339777506,1727982646823,-500.0,0.00032876,120]
[339777507,1727982646832,-500.0,0.00032876,120]
[339777508,1727982646841,-390.78367764,0.00032876,120]
[339777509,1727982646850,-1511.4,0.00032876,120]
[339777510,1727982646859,-590.69,0.00032876,120]
[339777511,1727982646868,-2449.82,0.00032876,120]
[339777512,1727982646877,-947.41,0.00032876,120]
[339777513,1727982646886,-500.0,0.00032876,120]
[339777514,1727982646895,-500.0,0.00032876,120]
[339777515,1727982646904,-500.0,0.00032876,120]
[339777516,1727982646915,-2091.47,0.00032876,120]
[339777517,1727982646924,-1803.74,0.00032876,120]
[339777518,1727982646933,-500.0,0.00032876,120]
[339777519,1727982646942,-500.0,0.00032876,120]
[339777520,1727982646951,-1448.94,0.00032876,120]
[339777521,1727982646961,-500.20453986,0.00032876,120]
[339777522,1727982646970,-500.0,0.00032876,120]
[339777523,1727982646980,-500.0,0.00032876,120]
[339777524,1727982646988,-705.79,0.00032876,120]
[339777525,1727982646997,-500.0,0.00032876,120]
[339777526,1727982647006,-500.0,0.00032876,120]
[339777527,1727982647016,-500.0,0.00032876,120]
[339777528,1727982647025,-500.0,0.00032876,120]
[339777529,1727982647034,-500.0,0.00032876,120]
[339777530,1727982647044,-500.0,0.00032876,120]
[339777531,1727982647053,-500.0,0.00032876,120]
[339777532,1727982647063,-503.32633795,0.00032876,120]
[339777533,1727982647072,-500.0,0.00032876,120]
[339777534,1727982647082,-500.0,0.00032876,120]
[339777535,1727982647091,-500.0,0.00032876,120]
[339777536,1727982647101,-500.0,0.00032876,120]
[339777537,1727982647110,-500.0,0.00032876,120]
[339777538,1727982647119,-500.0,0.00032876,120]
[339777539,1727982647128,-500.0,0.00032876,120]
[339777540,1727982647138,-500.0,0.00032876,120]
[339777541,1727982647147,-500.0,0.00032876,120]
[339777542,1727982647156,-1210.3,0.00032876,120]
[339777543,1727982647168,-1055.16,0.00032876,120]
[339777544,1727982647177,-500.0,0.00032876,120]
[339777545,1727982647186,-500.0,0.00032876,120]
[339777546,1727982647196,-500.0,0.00032876,120]
[339777547,1727982647205,-500.0,0.00032876,120]
[339777548,1727982647215,-1546.22,0.00032876,120]
[339777549,1727982647224,-501.2338712,0.00032876,120]
[339777550,1727982647233,-3557.83,0.00032876,120]
[339777551,1727982647243,-501.03764008,0.00032876,120]
[339777552,1727982647251,-500.0,0.00032876,120]
[339777553,1727982647261,-500.0,0.00032876,120]
[339777554,1727982647270,-500.0,0.00032876,120]
[339777555,1727982647279,-500.0,0.00032876,2]
[339777556,1727982647288,-698.03,0.00032876,120]
[339777557,1727982647297,-500.0,0.00032876,120]
[339777558,1727982647306,-762.97,0.00032876,120]
[339777559,1727982647315,-500.0,0.00032876,120]
[339777560,1727982647324,-500.0,0.00032876,120]
[339777561,1727982647333,-500.0,0.00032876,120]
[339777562,1727982647343,-826.0,0.00032876,120]
[339777563,1727982647356,-501.151266,0.00032876,120]
[339777564,1727982647365,-860.38,0.00032876,120]
[339777565,1727982647374,-501.02461329,0.00032876,7]
[339777566,1727982647383,-640.95,0.00032876,120]
[339777567,1727982647393,-150.0,0.00032876,120]
[339777568,1727982647402,-785.94,0.00032876,120]
[339777569,1727982647413,-555.44,0.00032876,120]
[339777570,1727982647422,-500.0,0.00032876,120]
[339777571,1727982647433,-654.3,0.00032876,120]
[339777572,1727982647443,-500.0,0.00032876,120]
[339777573,1727982647452,-667.35,0.00032876,120]
[339777574,1727982647461,-1400.3,0.00032876,120]
[339777575,1727982647470,-500.0,0.00032876,120]
[339777576,1727982647480,-500.0,0.00032876,120]
[339777577,1727982647489,-500.0,0.00032876,120]
[339777578,1727982647498,-500.0,0.00032876,120]
[339777579,1727982647507,-500.0,0.00032876,120]
[339777580,1727982647516,-3355.46,0.00032876,120]
[339777581,1727982647525,-773.15,0.00032876,120]